Cogmind - Beta 13 @@@ ROGUE MODE // 2024.03.31 @ 23:37:50 Player: nllptrxc Result: Destroyed by S-43 Plague with Heavy Machine Gun Performance ------------- Evolutions (9) 4500 Regions Visited (22) 4400 Robots Destroyed (215) 1075 Value Destroyed (6320) 6320 Prototype IDs (37) 740 Alien Tech Used (0) 0 Bonus (1743) 1743 TOTAL SCORE: 18778 Bonus ------- High Alert Combat Kills 326 Follower Combat Kills 318 Entered DSFs 1000 Aligned with FarCom 300 Friendly Fire -201 Cogmind --------- Core Integrity 0/1600 Matter 255/300 Energy 95/100 System Corruption 2% Temperature Cool (0) Movement Core (150) Ox2 Location -1/Access Parts ------- > --- POWER (2) -------- (None) > --- PROPULSION (5) --- (None) > --- UTILITY (16) ----- Enhanced Optical Array Long-range Sensor Array > --- WEAPON (2) ------- Tesla Rifle Spear > --- INVENTORY (5) ---- Heavy Machine Gun Peak State ------------ > --- POWER ------------ Micro Fission Core Micro Antimatter Reactor > --- PROPULSION ------- Field Propulsion Array Field Propulsion Array > --- UTILITY ---------- Enhanced Optical Array Advanced Terrain Scanner Improved Target Analyzer Improved Target Analyzer Improved Target Analyzer Improved Target Analyzer Advanced Transmission Jammer Improved Medium Armor Plating Hacking Suite Improved Hacking Suite Advanced Hacking Suite Improved System Shield Advanced Corruption Screen > --- WEAPON ----------- KE Penetrator > --- INVENTORY -------- Micro Fission Core Field Propulsion Drive Impulse Thruster Field Propulsion Array [Rating: 119] Favorites ----------- Power Light Deuterium Engine Engine Light Deuterium Engine Power Core Micro Fission Core Reactor Micro Antimatter Reactor Propulsion Light Treads Treads Light Treads Hover Unit Airjet Flight Unit Xenon Bombardment Thruster Utility Hacking Suite Device Structural Scanner Storage Large Storage Unit Processor Improved Target Analyzer Hackware Hacking Suite Protection Improved Light Armor Plating Weapon Makeshift Axe Energy Gun Medium Laser Ballistic Gun Railgun Ballistic Cannon Light Cannon Launcher Grenade Launcher Special Weapon Remote Datajack Impact Weapon Great Maul Slashing Weapon Makeshift Axe Piercing Weapon Spear Special Melee Weapon Improved Datajack Build | -11 -10 -10 -9 -9 -9 -8 -8 -7 -7 -6 -6 -6 -6 -5 -5 -4 -4 -4 -3 -2 -2 -1 ------- Run | Yrd Mat Min Mat Min Exi Min Mat Fac Sto Fac Was Fac Ext Fac DSF Fac Upp Upp Res Res DSF Acc Slots Evolved 18 | . . . 2 . . . 2 2 . 2 . . . 2 . 2 . . 2 2 . 2 Power 1 | . . . . . . . . . . . . . . 1 . . . . . . . . Propulsion 3 | . . . 1 . . . . 1 . . . . . . . . . . . 1 . . Utility 14 | . . . 1 . . . 2 1 . 2 . . . 1 . 2 . . 2 1 . 2 Weapon . | . . . . . . . . . . . . . . . . . . . . . . . Parts Attached 271 | 6 8 1 21 3 9 . 41 10 18 7 4 22 22 6 11 47 3 2 12 7 2 9 Power 38 | 1 1 . 4 . 1 . 11 1 1 1 . 2 2 . 1 7 1 . 2 1 . 1 Engine 20 | 1 1 . 4 . 1 . 9 1 . 1 . 2 . . . . . . . . . . Core 16 | . . . . . . . 2 . 1 . . . 2 . 1 7 1 . 1 1 . . Reactor 2 | . . . . . . . . . . . . . . . . . . . 1 . . 1 Propulsion 78 | 2 2 . 7 . 3 . 11 1 5 . 4 4 8 1 3 17 . . 7 2 . 1 Treads 21 | 2 2 . 7 . . . . . 4 . 1 . 5 . . . . . . . . . Leg . | . . . . . . . . . . . . . . . . . . . . . . . Wheel . | . . . . . . . . . . . . . . . . . . . . . . . Hover 11 | . . . . . 3 . 3 . . . 1 . . . 3 1 . . . . . . Flight 46 | . . . . . . . 8 1 1 . 2 4 3 1 . 16 . . 7 2 . 1 Utility 104 | 1 1 1 3 2 3 . 15 4 10 5 . 13 7 4 4 18 . 2 2 3 2 4 Device 25 | . . . . . . . . 1 2 1 . 5 4 . . 4 . 1 1 . 2 4 Storage 8 | 1 1 . 1 . 2 . . . 2 1 . . . . . . . . . . . . Processor 12 | . . 1 . . . . . . . . . 1 1 . . 6 . . 1 2 . . Hackware 20 | . . . . . . . 2 1 2 1 . 2 . 2 4 4 . 1 . 1 . . Protection 39 | . . . 2 2 1 . 13 2 4 2 . 5 2 2 . 4 . . . . . . Artifact . | . . . . . . . . . . . . . . . . . . . . . . . Weapon 51 | 2 4 . 7 1 2 . 4 4 2 1 . 3 5 1 3 5 2 . 1 1 . 3 Energy Gun 3 | 1 . . . . . . . . . . . . . . . . 1 . . . . 1 Energy Cannon . | . . . . . . . . . . . . . . . . . . . . . . . Ballistic Gun 12 | 1 . . . . . . . . . . . 2 2 . 1 3 1 . 1 . . 1 Ballistic Cannon 7 | . 1 . 1 1 1 . . 1 1 . . . . . . 1 . . . . . . Launcher 15 | . 3 . 5 . 1 . 1 1 . . . 1 2 . 1 . . . . . . . Special Weapon 1 | . . . . . . . . 1 . . . . . . . . . . . . . . Impact Weapon 3 | . . . . . . . . . . . . . 1 1 1 . . . . . . . Slashing Weapon 7 | . . . 1 . . . 2 1 1 1 . . . . . 1 . . . . . . Piercing Weapon 2 | . . . . . . . . . . . . . . . . . . . . 1 . 1 Special Melee Weapon 1 | . . . . . . . 1 . . . . . . . . . . . . . . . Unidentified Prototypes 6 | . . . 1 . . . . . . . 1 2 . 1 . 1 . . . . . . Corrupted Parts 2 | . . . . . . . . . . . . . 2 . . . . . . . . . System Corruption 7 | . . . . . . . . . . . . . 7 . . . . . . . . . Parts Lost 96 | . . . 3 2 . . 13 . 6 . 3 3 3 . 6 29 . . 5 6 . 17 Power 16 | . . . . . . . 5 . 1 . . . . . 2 4 . . 1 1 . 2 Propulsion 33 | . . . 3 1 . . 3 . 5 . 3 1 1 . 1 9 . . . 4 . 2 Utility 38 | . . . . . . . 3 . . . . 1 2 . 2 13 . . 4 1 . 12 Weapon 9 | . . . . 1 . . 2 . . . . 1 . . 1 3 . . . . . 1 Highest Loss Streak 15 | . . . 2 1 . . 4 . 4 . 2 2 3 . 4 9 . . 3 5 . 15 To Critical Strikes . | . . . . . . . . . . . . . . . . . . . . . . . Average Slot Usage (%) 83 | . 96 100 99 99 88 100 88 90 89 87 58 60 77 75 73 77 69 80 77 61 54 42 Engine 6 | . 13 14 11 11 11 11 6 7 5 . . 4 4 . . . . . . . . . Core 1 | . . . . . . . 1 . 1 5 . . . 5 3 7 8 10 4 4 4 2 Treads 11 | . 27 28 32 32 20 . . . 3 20 11 . 9 . . . . . . . . . Hover 2 | . . . . . 1 33 8 . . . . 6 . . 3 5 . . . . . . Flight 8 | . . . . . . . 18 30 25 . 3 7 14 16 14 9 10 10 11 13 4 4 Device 2 | . . . . . . . . 5 2 . . 7 3 5 2 3 . 4 6 4 6 6 Storage 6 | . 25 27 11 11 11 11 2 . 6 6 . . . . . . . . . . . . Processor 7 | . . . 11 11 11 11 3 . . . . 1 7 5 5 17 26 26 24 18 21 15 Hackware 14 | . . . . . . . 13 15 23 30 28 22 25 24 29 25 15 18 18 16 17 11 Protection 8 | . . . 10 11 11 11 20 22 11 14 2 4 7 9 6 2 5 5 2 . . . Ballistic Cannon 3 | . 12 14 . 1 10 11 2 . . 6 . . . . . . . . . . . . Launcher 3 | . 11 14 10 8 . 11 2 . . . . . . . . . . . . . . . Slashing Weapon 4 | . . . 10 11 10 . 6 6 6 1 6 3 . . . 1 . . . . . . Naked Turns . | . . . . . . . . . . . . . . . . . . . . . . . Heaviest Build 40 | 13 36 34 40 39 39 24 26 22 23 39 39 15 15 16 16 28 23 23 27 14 6 10 Greatest Support 69 | 40 43 43 69 60 40 24 24 24 60 60 60 18 19 17 22 44 30 30 31 36 7 15 Greatest Overweight (x) 4 | . 1 . 1 . . . 1 . 2 . . 1 . . . 4 . . 1 . . . Average Overweight (x) . | . . . . . . . . . . . . . . . . . . . . . . . Largest Inventory Capacity 15 | 8 15 15 15 15 15 10 10 5 8 10 10 5 5 5 5 5 5 5 5 5 5 5 Average Capacity 8 | 7 13 15 15 15 14 10 6 5 7 9 5 5 5 5 5 5 5 5 5 5 5 5 Most Carried 15 | 4 15 15 15 15 15 9 10 5 8 10 10 5 5 5 5 5 5 5 5 3 4 5 Average Carried 7 | 2 9 14 14 14 13 9 6 3 6 8 5 4 4 4 3 3 4 5 4 2 3 4 Final Capacity 15 | 8 15 15 15 15 10 10 5 5 8 10 5 5 5 5 5 5 5 5 5 5 5 5 Final Carried 15 | 3 14 15 15 14 9 9 4 5 8 10 5 5 5 4 5 5 5 5 4 3 4 1 Class Distribution -------------------- 38% | Mutant 26% | Hacker-Mutant 15% | Hacker-Scout 6% | Hacker-Sprinter 4% | Scavenger-Scout 4% | Wizard-Mutant Dominant Class ---------------- Mutant | -10/Materials Mutant | -10/Mines Mutant | -9/Materials Mutant | -9/Mines Mutant | -9/Exiles Mutant | -8/Mines Hacker-Mutant | -8/Materials Scavenger-Scout | -7/Factory Scavenger-Sprinter | -7/Storage Hacker-Mutant | -6/Factory Hacker-Mutant | -6/Waste Hacker-Mutant | -6/Factory Hacker-Scout | -6/Extension Hacker-Scout | -5/Factory Hacker-Scout | -5/DSF Wizard-Mutant | -4/Factory Hacker-Mutant | -4/Upper Caves Hacker-Mutant | -4/Upper Caves Hacker-Scout | -3/Research Hacker-Sprinter | -2/Research Hacker-Mutant | -2/DSF Hacker-Mutant | -1/Access Resources | -11 -10 -10 -9 -9 -9 -8 -8 -7 -7 -6 -6 -6 -6 -5 -5 -4 -4 -4 -3 -2 -2 -1 ----------- Run | Yrd Mat Min Mat Min Exi Min Mat Fac Sto Fac Was Fac Ext Fac DSF Fac Upp Upp Res Res DSF Acc Matter Collected 4343 | 196 380 27 477 28 . 41 583 50 442 150 . 157 584 23 . 750 60 40 29 167 . 159 Remotely . | . . . . . . . . . . . . . . . . . . . . . . . Salvage Created 7214 | . 387 24 1640 258 . 17 1753 208 1108 55 . 203 537 23 11 668 . . 29 . . 293 Parts 451 | . 30 4 103 15 . 3 102 21 71 6 . 12 21 . 2 37 . . 1 . . 23 Haulers Intercepted 11 | . 1 . 4 . . . 4 . . . . . 2 . . . . . . . . . Recyclers Shooed 7 | . 3 1 1 . . . . . . . . 1 . . . 1 . . . . . . Parts Field Recycled . | . . . . . . . . . . . . . . . . . . . . . . . Retrieved Matter . | . . . . . . . . . . . . . . . . . . . . . . . Parts Self-Destructed 12 | . . . . . . . . . . . . . . . . . . 12 . . . . Prevented 1 | . . . . . . . . . . . . . . . . . . 1 . . . . Kills | -11 -10 -10 -9 -9 -9 -8 -8 -7 -7 -6 -6 -6 -6 -5 -5 -4 -4 -4 -3 -2 -2 -1 ------- Run | Yrd Mat Min Mat Min Exi Min Mat Fac Sto Fac Was Fac Ext Fac DSF Fac Upp Upp Res Res DSF Acc Combat Hostiles Destroyed 151 | . 12 3 36 6 . 3 29 7 18 1 . 3 9 . 2 14 . . . . . 8 Melee 74 | . . . 19 6 . . 23 . 12 . . . 2 . . 4 . . . . . 8 Guns 11 | . 1 . . . . . . . . . . . . . . 10 . . . . . . Cannons 18 | . 8 . . . . . 2 1 6 1 . . . . . . . . . . . . AOE 45 | . 3 3 17 . . 3 4 6 . . . 3 4 . 2 . . . . . . . Classes Destroyed 15 | . 7 . 3 1 . . 3 . 1 . . . . . . . . . . . . . Worker 9 | . 1 . 2 . . . 2 . . . . 1 2 . . . . . 1 . . . Builder 8 | . . . 2 . . . . 2 1 . . 1 1 . . 1 . . . . . . Tunneler 5 | . . . . . . . 1 2 1 . . . 1 . . . . . . . . . Hauler 11 | . 1 . 4 . . . 4 . . . . . 2 . . . . . . . . . Recycler 13 | . 1 . 5 1 . . 2 . 2 . . 1 . . . 1 . . . . . . Operator 9 | . 1 . 2 . . . 2 2 1 . . . . 1 . . . . . . . . Watcher 9 | . 1 . 3 . . . 4 . . 1 . . . . . . . . . . . . Swarmer 49 | . 5 3 8 3 . 3 3 3 . . . 3 3 . . 8 . . . . . 7 Cutter 4 | . . . . . . . 2 . . . . . . . 2 . . . . . . . Grunt 57 | . 7 . 17 1 . . 16 3 10 . . . 3 . . . . . . . . . Brawler 3 | . . . 2 . . . . . . . . . 1 . . . . . . . . . Duelist 4 | . . . . 2 . . . 1 1 . . . . . . . . . . . . . Sentry 22 | . . . 9 . . . 7 . 5 . . . 1 . . . . . . . . . Hunter 1 | . . . . . . . 1 . . . . . . . . . . . . . . . Programmer 11 | . . . . . . . . . 2 1 . . 1 . . 6 . . . . . 1 Best Kill Streak 8 | . 4 3 6 3 . 3 8 8 6 1 . 5 7 1 2 5 . . 1 . . 8 Combat Bots Only 8 | . 3 3 5 3 . 3 7 7 6 1 . 3 4 . 2 5 . . . . . 8 Max Kills in Single Turn 5 | . 3 2 3 1 . 2 2 2 1 1 . 5 3 1 1 2 . . 1 . . 1 Gunslinging . | . . . . . . . . . . . . . . . . . . . . . . . Exploded 3 | . 3 2 3 . . 2 2 2 . . . 3 2 . 1 . . . . . . . Melee 1 | . . . 1 1 . . 1 . 1 . . . 1 . . 1 . . . . . 1 Uniques/NPCs Destroyed . | . . . . . . . . . . . . . . . . . . . . . . . Combat | -11 -10 -10 -9 -9 -9 -8 -8 -7 -7 -6 -6 -6 -6 -5 -5 -4 -4 -4 -3 -2 -2 -1 -------- Run | Yrd Mat Min Mat Min Exi Min Mat Fac Sto Fac Was Fac Ext Fac DSF Fac Upp Upp Res Res DSF Acc Hostile Shots Fired 1230 | . 36 2 137 51 . 2 222 19 128 2 3 19 58 1 35 212 28 13 84 4 1 173 Missed 465 | . 9 . 32 12 . . 77 9 60 1 . 11 26 1 13 73 18 9 39 2 1 72 Damage Taken 13640 | . 290 18 1384 515 . 48 1865 152 708 56 157 438 363 . 688 3165 243 60 763 275 . 2452 Core 4104 | . 42 9 188 54 . . 399 41 179 . 54 245 42 . 223 690 73 29 116 115 . 1605 Absorbed by Shields 101 | . . . . . . . . . . . . . 21 . . 80 . . . . . . Redirected to Shielding 194 | . . . . . . . 63 11 19 . . . . . . 101 . . . . . . Regen/Repaired (Parts) 313 | . . . . . . . 185 126 . . . 2 . . . . . . . . . . Core Remaining (%) 66 | 100 . 79 . . . 39 27 . 68 . . . 59 . 77 . . 31 91 . 92 . Volleys Fired 279 | . 52 2 24 7 . 2 20 17 15 5 . 8 31 . 13 60 . . 23 . . . Largest 2 | . 2 1 1 1 . 1 1 1 1 1 . 1 1 . 1 1 . . 1 . . . Hottest 70 | . 70 30 39 39 . 33 39 48 57 57 . 39 39 . 39 35 . . 33 . . . Shots Fired 282 | . 55 2 24 7 . 2 20 17 15 5 . 8 31 . 13 59 1 . 23 . . . Gun 127 | . 4 . . . . . . . . . . 7 25 . 8 59 1 . 23 . . . Cannon 94 | . 47 . 1 7 . . 15 4 15 5 . . . . . . . . . . . . Launcher 61 | . 4 2 23 . . 2 5 13 . . . 1 6 . 5 . . . . . . . Special . | . . . . . . . . . . . . . . . . . . . . . . . Kinetic 219 | . 49 . 1 7 . . 15 4 15 5 . 7 25 . 8 59 1 . 23 . . . Thermal 2 | . 2 . . . . . . . . . . . . . . . . . . . . . Explosive 61 | . 4 2 23 . . 2 5 13 . . . 1 6 . 5 . . . . . . . Electromagnetic . | . . . . . . . . . . . . . . . . . . . . . . . Robot Hit Streak 14 | . 12 . 4 5 . . 4 4 8 2 . 9 7 . 2 14 . . 5 . . . Robot Miss Streak 7 | . 7 . 1 2 . . 2 2 2 1 . . 1 . 2 2 . . 1 . . . Penetration Max 1 | . . . . . . . . . . . . 1 1 . . 1 . . . . . . Secondary Targets . | . . . . . . . . . . . . . . . . . . . . . . . Shots Hit Robots 452 | . 30 . 73 20 . . 116 15 47 3 . 8 29 1 6 64 . . 19 . . 21 Core Hits 260 | . 27 4 64 7 . 1 46 14 24 3 . 11 16 . 8 22 . . 2 . . 11 Critical Kills 2 | . . . . . . . . . . . . . 1 . . 1 . . . . . . Critical Parts Destroyed 7 | . . . . . . . . . . . . . 4 . . 2 . . 1 . . . Critical Strikes 36 | . 2 . 6 . . . 9 . 4 1 . . 5 . . 6 . . 1 . . 2 Destroy 4 | . . . . . . . . . . . . . . . . 3 . . 1 . . . Blast 3 | . 2 . . . . . . . . 1 . . . . . . . . . . . . Smash 5 | . . . . . . . . . . . . . 5 . . . . . . . . . Sever 22 | . . . 6 . . . 9 . 4 . . . . . . 3 . . . . . . Impale 2 | . . . . . . . . . . . . . . . . . . . . . . 2 Melee Attacks 476 | . . . 95 27 . . 166 12 45 1 . 5 29 13 . 49 . . . . . 34 Impact 42 | . . . . . . . . . . . . . 29 13 . . . . . . . . Slashing 398 | . . . 95 27 . . 164 12 45 1 . 5 . . . 49 . . . . . . Piercing 34 | . . . . . . . . . . . . . . . . . . . . . . 34 Sneak Attacks 49 | . . . 15 1 . . 20 3 6 . . . . 1 . 3 . . . . . . Combat Hostiles 5 | . . . . . . . 4 . 1 . . . . . . . . . . . . . Follow-up Attacks . | . . . . . . . . . . . . . . . . . . . . . . . Damage Inflicted 20864 | . 759 151 4468 592 . 236 5054 1476 2680 160 . 622 1275 58 509 1678 . . 545 . . 601 Guns 1945 | . 16 . . . . . . . . . . 203 388 . 23 770 . . 545 . . . Cannons 1416 | . 471 . 18 108 . . 238 82 400 99 . . . . . . . . . . . . Explosions 4968 | . 252 128 1559 . . 236 380 973 . 61 . 402 491 . 486 . . . . . . . Melee 12473 | . . . 2891 484 . . 4434 421 2280 . . . 396 58 . 908 . . . . . 601 Ramming 62 | . 20 23 . . . . 2 . . . . 17 . . . . . . . . . . Kinetic 3361 | . 487 . 18 108 . . 238 82 400 99 . 203 388 . 23 770 . . 545 . . . Thermal 144 | . . . . . . . . . . . . 144 . . . . . . . . . . Explosive 4751 | . 179 128 1559 . . 236 380 973 . 61 . 258 491 . 486 . . . . . . . Electromagnetic 73 | . 73 . . . . . . . . . . . . . . . . . . . . . Impact 454 | . . . . . . . . . . . . . 396 58 . . . . . . . . Slashing 11418 | . . . 2891 484 . . 4434 421 2280 . . . . . . 908 . . . . . . Piercing 601 | . . . . . . . . . . . . . . . . . . . . . . 601 Highest Corruption 36 | . 2 2 . . . . . . 1 . . 3 20 . . 34 36 36 . . . 2 Average Corruption 11 | . 1 2 . . . . . . 1 . . 2 9 . . 28 34 36 . . . 1 Corruption Purged . | . . . . . . . . . . . . . . . . . . . . . . . Corruption Blocked 7 | . . . . . . . . . . . . . . . . . . . 6 1 . . Effects 160 | . 8 12 . . . . . . 7 . . 2 49 . . 66 9 6 . . . 1 Message Errors 39 | . . 3 . . . . . . 3 . . 1 11 . . 18 1 2 . . . . Matter Fused 31 | . 3 5 . . . . . . 1 . . . 10 . . 8 3 . . . . 1 Heat Flow Errors 19 | . 1 2 . . . . . . 1 . . . 8 . . 7 . . . . . . Energy Discharges 18 | . 1 . . . . . . . . . . . 9 . . 8 . . . . . . Parts Fused 1 | . . . . . . . . . . . . . . . . 1 . . . . . . Data Loss (minor) 25 | . 2 2 . . . . . . 2 . . 1 6 . . 9 1 2 . . . . Data Loss (major) 5 | . . . . . . . . . . . . . 1 . . 4 . . . . . . Misfires 3 | . 1 . . . . . . . . . . . . . . 1 1 . . . . . Alerts 2 | . . . . . . . . . . . . . 1 . . 1 . . . . . . Misdirections 15 | . . . . . . . . . . . . . 3 . . 7 3 2 . . . . Weapon Failures 2 | . . . . . . . . . . . . . . . . 2 . . . . . . Overload Shots . | . . . . . . . . . . . . . . . . . . . . . . . Overflow Damage 1627 | . 11 . 320 66 . 33 402 169 240 . . 52 153 23 55 77 . . . . . 26 Projectiles 24 | . 11 . . . . . . 13 . . . . . . . . . . . . . . Explosions 214 | . . . 24 . . 33 . 40 . . . 52 10 . 55 . . . . . . . Melee 1389 | . . . 296 66 . . 402 116 240 . . . 143 23 . 77 . . . . . 26 Knockbacks 15 | . 8 . . 3 . . 1 1 2 . . . . . . . . . . . . . Impact 1 | . 1 . . . . . . . . . . . . . . . . . . . . . Kinetic 12 | . 5 . . 3 . . 1 1 2 . . . . . . . . . . . . . Secondary 2 | . 2 . . . . . . . . . . . . . . . . . . . . . Self-Inflicted Damage 522 | . 42 . 40 . . 32 64 . . 43 . 140 . . 161 . . . . . . . Shots 12 | . 1 . 3 . . 1 1 . . 1 . 2 . . 3 . . . . . . . Rammed 22 | . 7 4 . . . . 1 . . . . 10 . . . . . . . . . . Targets Rammed 22 | . 7 4 . . . . 1 . . . . 10 . . . . . . . . . . Kicked . | . . . . . . . . . . . . . . . . . . . . . . . Crushed . | . . . . . . . . . . . . . . . . . . . . . . . Highest Temperature 463 | . 206 187 78 8 . . 52 303 129 8 373 7 269 . . 463 6 . 9 . . . Average Temperature 69 | . 54 85 24 5 . . 20 64 31 4 198 4 110 . . 130 4 . 5 . . . Received Heat Transfer 1575 | . 57 . 444 6 . . 531 45 300 . . 9 60 . . 60 . . . . . 63 Effects 1 | . . . . . . . . . . . 1 . . . . . . . . . . . Shutdowns 1 | . . . . . . . . . . . 1 . . . . . . . . . . . Siege Activations . | . . . . . . . . . . . . . . . . . . . . . . . Robots Corrupted . | . . . . . . . . . . . . . . . . . . . . . . . Combat Hostiles . | . . . . . . . . . . . . . . . . . . . . . . . Parts Fried 10 | . . . . . . . . . . . . . 6 4 . . . . . . . . Impact Corruptions 6 | . . . . . . . . . . . . . 5 1 . . . . . . . . Robots Melted . | . . . . . . . . . . . . . . . . . . . . . . . Combat Hostiles . | . . . . . . . . . . . . . . . . . . . . . . . Parts Melted 1 | . . . . . . . . . . . . . 1 . . . . . . . . . Heat Transferred 100 | . . . . . . . . . . . . 100 . . . . . . . . . . Parts Sabotaged . | . . . . . . . . . . . . . . . . . . . . . . . Parts Stolen . | . . . . . . . . . . . . . . . . . . . . . . . Parts Stripped . | . . . . . . . . . . . . . . . . . . . . . . . Power Chain Reactions . | . . . . . . . . . . . . . . . . . . . . . . . Alert | -11 -10 -10 -9 -9 -9 -8 -8 -7 -7 -6 -6 -6 -6 -5 -5 -4 -4 -4 -3 -2 -2 -1 ------- Run | Yrd Mat Min Mat Min Exi Min Mat Fac Sto Fac Was Fac Ext Fac DSF Fac Upp Upp Res Res DSF Acc Peak Influence 941 | . 225 111 941 507 . 103 749 453 411 208 15 287 291 139 131 283 . . 244 164 100 350 Initial 342 | . . 27 . 342 . . 39 340 26 186 . . 88 97 13 60 . . 244 134 100 60 Average 169 | . 128 41 317 424 . 102 289 251 171 109 3 58 142 77 47 103 . . 158 142 100 115 Maximum Alert Level 3 | . 1 . 3 2 . . 3 2 2 1 . 1 1 . . 1 . . 1 . . 1 Low Security (%) 70 | 100 86 100 37 . . 100 36 35 61 99 100 96 79 100 100 92 . . 45 100 100 84 Level 1 19 | . 13 . 34 7 . . 32 43 36 . . 3 20 . . 7 . . 54 . . 15 Level 2 7 | . . . 17 92 . . 21 21 2 . . . . . . . . . . . . . Level 3 2 | . . . 10 . . . 9 . . . . . . . . . . . . . . . Level 4 . | . . . . . . . . . . . . . . . . . . . . . . . Level 5 . | . . . . . . . . . . . . . . . . . . . . . . . High Security . | . . . . . . . . . . . . . . . . . . . . . . . Max Security . | . . . . . . . . . . . . . . . . . . . . . . . Squads Dispatched 59 | . 3 . 7 . . . 11 6 4 1 . 8 1 2 2 10 . . 2 1 . 1 Investigation 32 | . 2 . 3 . . . 9 5 2 . . 6 . 1 . 4 . . . . . . Extermination 12 | . . . . . . . . 1 2 1 . 2 . . . 4 . . 1 1 . . Reinforcement 14 | . 1 . 3 . . . 2 . . . . . 1 1 2 2 . . 1 . . 1 Assault 1 | . . . 1 . . . . . . . . . . . . . . . . . . . Garrison . | . . . . . . . . . . . . . . . . . . . . . . . Intercept . | . . . . . . . . . . . . . . . . . . . . . . . Searches Triggered . | . . . . . . . . . . . . . . . . . . . . . . . Construction Impeded 1 | . . . . . . . . . . . . . . . . 1 . . . . . . Haulers Reinforced . | . . . . . . . . . . . . . . . . . . . . . . . Active Scanning Responses . | . . . . . . . . . . . . . . . . . . . . . . . Cargo Convoy Interrupts 1 | . . . . . . . . 1 . . . . . . . . . . . . . . Stealth | -11 -10 -10 -9 -9 -9 -8 -8 -7 -7 -6 -6 -6 -6 -5 -5 -4 -4 -4 -3 -2 -2 -1 --------- Run | Yrd Mat Min Mat Min Exi Min Mat Fac Sto Fac Was Fac Ext Fac DSF Fac Upp Upp Res Res DSF Acc Distress Signals 23 | . 2 . 8 . . . 3 1 1 . . . 2 . . 2 . . 1 . . 3 Communications Jammed 15 | . . . . . . . . . . . . . . . . . . . 12 . . 3 Distress Signals 12 | . . . . . . . . . . . . . . . . . . . 9 . . 3 Times Spotted 343 | . 21 3 61 7 . 1 47 13 23 3 5 17 25 1 8 45 7 9 14 4 1 28 Peak Tracking Total 24 | . 7 3 7 3 . 1 9 6 6 1 5 6 5 1 5 12 6 7 8 3 1 24 Tactical Retreats 50 | . 3 . 5 1 . . 5 2 1 . . 7 2 1 3 6 4 2 4 . . 4 Traps | -11 -10 -10 -9 -9 -9 -8 -8 -7 -7 -6 -6 -6 -6 -5 -5 -4 -4 -4 -3 -2 -2 -1 ------- Run | Yrd Mat Min Mat Min Exi Min Mat Fac Sto Fac Was Fac Ext Fac DSF Fac Upp Upp Res Res DSF Acc Traps Triggered 23 | . 5 . . . . . 2 1 2 1 . 1 3 1 . 3 1 . 2 1 . . Indirectly . | . . . . . . . . . . . . . . . . . . . . . . . Trap Hack Attempts . | . . . . . . . . . . . . . . . . . . . . . . . Triggered . | . . . . . . . . . . . . . . . . . . . . . . . Disarmed . | . . . . . . . . . . . . . . . . . . . . . . . Reprogrammed . | . . . . . . . . . . . . . . . . . . . . . . . Reused . | . . . . . . . . . . . . . . . . . . . . . . . Traps Extracted . | . . . . . . . . . . . . . . . . . . . . . . . Installed . | . . . . . . . . . . . . . . . . . . . . . . . Triggered 3 | . . . . . . . . 2 . . . . . . . . 1 . . . . . Machines | -11 -10 -10 -9 -9 -9 -8 -8 -7 -7 -6 -6 -6 -6 -5 -5 -4 -4 -4 -3 -2 -2 -1 ---------- Run | Yrd Mat Min Mat Min Exi Min Mat Fac Sto Fac Was Fac Ext Fac DSF Fac Upp Upp Res Res DSF Acc Machines Disabled 15 | . 2 . 1 . . . 2 . 1 1 . 2 4 . . 2 . . . . . . Max in Single Turn 2 | . 1 . 1 . . . 1 . 1 1 . 2 2 . . 1 . . . . . . Garrison Access 2 | . . . . . . . . 1 . . . 1 . . . . . . . . . . Machines Repaired . | . . . . . . . . . . . . . . . . . . . . . . . Machines Dismantled . | . . . . . . . . . . . . . . . . . . . . . . . Machines Sabotaged . | . . . . . . . . . . . . . . . . . . . . . . . Overloaded Fab Kills . | . . . . . . . . . . . . . . . . . . . . . . . Hacking | -11 -10 -10 -9 -9 -9 -8 -8 -7 -7 -6 -6 -6 -6 -5 -5 -4 -4 -4 -3 -2 -2 -1 --------- Run | Yrd Mat Min Mat Min Exi Min Mat Fac Sto Fac Was Fac Ext Fac DSF Fac Upp Upp Res Res DSF Acc Machines Accessed 69 | . 6 1 4 . 5 . 9 11 2 . . 11 5 3 . 7 . . 3 2 . . Terminals 52 | . 6 . 4 . . . 8 8 2 . . 8 5 3 . 4 . . 2 2 . . Fabricators 4 | . . . . . . . . 1 . . . . . . . 3 . . . . . . Repair Stations 4 | . . . . . . . 1 1 . . . 2 . . . . . . . . . . Recycling Units 1 | . . . . . . . . . . . . . . . . . . . 1 . . . Scanalyzers . | . . . . . . . . . . . . . . . . . . . . . . . Garrison Access 2 | . . . . . . . . 1 . . . 1 . . . . . . . . . . Total Hacks 269 | . 24 1 20 . 50 . 47 34 6 . . 34 10 8 . 23 . . 9 3 . . Successful 166 | . 14 1 4 . 50 . 30 18 1 . . 18 6 3 . 13 . . 6 2 . . Failed 101 | . 10 . 16 . . . 17 16 5 . . 15 4 5 . 9 . . 3 1 . . Catastrophic 14 | . . . 1 . . . 2 3 1 . . 4 . 1 . 1 . . 1 . . . Database Lockouts 2 | . . . . . . . . . . . . 1 . . . 1 . . . . . . Manual 132 | . 20 . 16 . 1 . 29 21 9 . . 17 2 7 . 4 . . 6 . . . Terminals 187 | . 24 . 20 . . . 40 26 6 . . 27 10 8 . 15 . . 8 3 . . Fabricators 9 | . . . . . . . . 1 . . . . . . . 8 . . . . . . Repair Stations 18 | . . . . . . . 7 6 . . . 5 . . . . . . . . . . Recycling Units 1 | . . . . . . . . . . . . . . . . . . . 1 . . . Scanalyzers . | . . . . . . . . . . . . . . . . . . . . . . . Garrison Access 3 | . . . . . . . . 1 . . . 2 . . . . . . . . . . Terminal Hacks 120 | . 8 1 1 . 50 . 17 6 1 . . 12 6 2 . 9 . . 5 2 . . Record 67 | . . . . . 49 . 2 2 . . . 4 1 . . 6 . . 2 1 . . Part Schematic 1 | . . . . . . . . . . . . . . . . 1 . . . . . . Robot Analysis 2 | . 1 . . . . . 1 . . . . . . . . . . . . . . . Prototype ID Bank 5 | . . . . . . . 5 . . . . . . . . . . . . . . . Open Door 6 | . . 1 . . . . . . . . . 1 4 . . . . . . . . . Open DSF 2 | . . . . . . . . . . . . . . 1 . . . . . 1 . . Level Access Points 1 | . . . . . . . . . . . . . . . . . . . 1 . . . Branch Access Points 2 | . . . . . . . . . . . . . . . . 1 . . 1 . . . Terminal Index 8 | . 1 . 1 . . . 1 1 1 . . 1 . 1 . 1 . . . . . . Repair Station Index 1 | . . . . . . . 1 . . . . . . . . . . . . . . . Garrison Index 1 | . . . . . . . 1 . . . . . . . . . . . . . . . Alert Level 3 | . . . . . . . 1 1 . . . . 1 . . . . . . . . . Unreport Threat 3 | . . . . . . . 1 2 . . . . . . . . . . . . . . Locate Traps 4 | . 3 . . . . . . . . . . . . . . . . . 1 . . . Maintenance Status 1 | . . . . . . . . . . . . 1 . . . . . . . . . . Surveillance Status 1 | . . . . . . . 1 . . . . . . . . . . . . . . . Patrol Status 1 | . . . . . . . 1 . . . . . . . . . . . . . . . Transport Status 1 | . 1 . . . . . . . . . . . . . . . . . . . . . Recall Investigation 2 | . . . . . . . 1 . . . . 1 . . . . . . . . . . Recall Extermination 1 | . . . . . . . . . . . . 1 . . . . . . . . . . Recall Reinforcements 1 | . . . . . . . . . . . . 1 . . . . . . . . . . Hauler Manifests 3 | . 2 . . . . . 1 . . . . . . . . . . . . . . . Registered Components 1 | . . . . . . . . . . . . 1 . . . . . . . . . . Registered Prototypes 1 | . . . . . . . . . . . . 1 . . . . . . . . . . Derelict Proto ID Bank 1 | . . . . . 1 . . . . . . . . . . . . . . . . . Fabricator Hacks 5 | . . . . . . . . 1 . . . . . . . 4 . . . . . . Network Status 2 | . . . . . . . . 1 . . . . . . . 1 . . . . . . Load Schematic 2 | . . . . . . . . . . . . . . . . 2 . . . . . . Build 1 | . . . . . . . . . . . . . . . . 1 . . . . . . Repair Station Hacks 15 | . . . . . . . 7 5 . . . 3 . . . . . . . . . . Scan Component 8 | . . . . . . . 4 3 . . . 1 . . . . . . . . . . Repair 6 | . . . . . . . 3 2 . . . 1 . . . . . . . . . . Refit 1 | . . . . . . . . . . . . 1 . . . . . . . . . . Recycling Unit Hacks 1 | . . . . . . . . . . . . . . . . . . . 1 . . . Retrieve Matter 1 | . . . . . . . . . . . . . . . . . . . 1 . . . Scanalyzer . | . . . . . . . . . . . . . . . . . . . . . . . Garrison Access Hacks 2 | . . . . . . . . 1 . . . 1 . . . . . . . . . . Seal Access 2 | . . . . . . . . 1 . . . 1 . . . . . . . . . . Unauthorized Hacks 23 | . 6 . 3 . . . 6 5 . . . 2 . 1 . . . . . . . . Terminals 23 | . 6 . 3 . . . 6 5 . . . 2 . 1 . . . . . . . . Assimilate 6 | . 1 . . . . . 2 3 . . . . . . . . . . . . . . Botnet 12 | . 4 . 3 . . . 3 1 . . . 1 . . . . . . . . . . Operators 5 | . 1 . . . . . 1 1 . . . 1 . 1 . . . . . . . . Fabricators . | . . . . . . . . . . . . . . . . . . . . . . . Repair Stations . | . . . . . . . . . . . . . . . . . . . . . . . Recycling Units . | . . . . . . . . . . . . . . . . . . . . . . . Scanalyzers . | . . . . . . . . . . . . . . . . . . . . . . . Garrison Access . | . . . . . . . . . . . . . . . . . . . . . . . Data Cores Recovered . | . . . . . . . . . . . . . . . . . . . . . . . Used . | . . . . . . . . . . . . . . . . . . . . . . . Hacking Detections 51 | . 5 . 4 . . . 9 8 2 . . 9 1 3 . 6 . . 3 1 . . Full Trace Events 31 | . 3 . 3 . . . 9 4 1 . . 6 . 1 . 4 . . . . . . Feedback Events 1 | . . . . . . . . . . . . . . . . 1 . . . . . . Hackware Fried 1 | . . . . . . . . . . . . . . . . 1 . . . . . . Feedback Blocked . | . . . . . . . . . . . . . . . . . . . . . . . Robot Schematics Acquired . | . . . . . . . . . . . . . . . . . . . . . . . Robots Built . | . . . . . . . . . . . . . . . . . . . . . . . Authchips . | . . . . . . . . . . . . . . . . . . . . . . . Time . | . . . . . . . . . . . . . . . . . . . . . . . Total Robot Build Rating . | . . . . . . . . . . . . . . . . . . . . . . . Part Schematics Acquired 1 | . . . . . . . . . . . . . . . . 1 . . . . . . Parts Built 1 | . . . . . . . . . . . . . . . . 1 . . . . . . Authchips . | . . . . . . . . . . . . . . . . . . . . . . . Time 73 | . . . . . . . . . . . . . . . . 73 . . . . . . Total Part Build Rating 3 | . . . . . . . . . . . . . . . . 3 . . . . . . Parts Repaired 6 | . . . . . . . 3 2 . . . 1 . . . . . . . . . . Time 213 | . . . . . . . 114 64 . . . 35 . . . . . . . . . . Parts Recycled . | . . . . . . . . . . . . . . . . . . . . . . . Recycled Matter . | . . . . . . . . . . . . . . . . . . . . . . . Retrieved Matter . | . . . . . . . . . . . . . . . . . . . . . . . Retrieved Components . | . . . . . . . . . . . . . . . . . . . . . . . Parts Scanalyzed . | . . . . . . . . . . . . . . . . . . . . . . . Part Schematics Acquired . | . . . . . . . . . . . . . . . . . . . . . . . Parts Damaged . | . . . . . . . . . . . . . . . . . . . . . . . Bothacking | -11 -10 -10 -9 -9 -9 -8 -8 -7 -7 -6 -6 -6 -6 -5 -5 -4 -4 -4 -3 -2 -2 -1 ------------ Run | Yrd Mat Min Mat Min Exi Min Mat Fac Sto Fac Was Fac Ext Fac DSF Fac Upp Upp Res Res DSF Acc Used RIF Installer . | . . . . . . . . . . . . . . . . . . . . . . . Robots Hacked 1 | . . . . . . . 1 . . . . . . . . . . . . . . . Non-combat 1 | . . . . . . . 1 . . . . . . . . . . . . . . . Combat . | . . . . . . . . . . . . . . . . . . . . . . . Robot Hacks Applied 2 | . . . . . . . 2 . . . . . . . . . . . . . . . parse_system 1 | . . . . . . . 1 . . . . . . . . . . . . . . . no_distress 1 | . . . . . . . 1 . . . . . . . . . . . . . . . Relay Couplers Released . | . . . . . . . . . . . . . . . . . . . . . . . Fabnet Peak Effective % . | . . . . . . . . . . . . . . . . . . . . . . . Robots Rewired . | . . . . . . . . . . . . . . . . . . . . . . . Allies Hacked . | . . . . . . . . . . . . . . . . . . . . . . . Hacks Repelled . | . . . . . . . . . . . . . . . . . . . . . . . Allies | -11 -10 -10 -9 -9 -9 -8 -8 -7 -7 -6 -6 -6 -6 -5 -5 -4 -4 -4 -3 -2 -2 -1 -------- Run | Yrd Mat Min Mat Min Exi Min Mat Fac Sto Fac Was Fac Ext Fac DSF Fac Upp Upp Res Res DSF Acc Total Allies 13 | . . . . . . . 1 3 . . 1 . 8 . . . . . . . . . Largest Group 5 | . . . . . . . 1 3 . . 1 . 5 . . . . . . . . . Highest-Rated Group 159 | . . . . . . . 10 75 . . 31 . 159 . . . . . . . . . Highest-Rated Ally 159 | . . . . . . . 10 26 . . 31 . 159 . . . . . . . . . Total Orders . | . . . . . . . . . . . . . . . . . . . . . . . Ally Attacks 61 | . . . . . . . . . . . 6 . 55 . . . . . . . . . Total Damage 1182 | . . . . . . . . . . . 85 . 1097 . . . . . . . . . Kills 11 | . . . . . . . . . . . . . 11 . . . . . . . . . Allies Corrupted . | . . . . . . . . . . . . . . . . . . . . . . . Allies Melted . | . . . . . . . . . . . . . . . . . . . . . . . Intel | -11 -10 -10 -9 -9 -9 -8 -8 -7 -7 -6 -6 -6 -6 -5 -5 -4 -4 -4 -3 -2 -2 -1 ------- Run | Yrd Mat Min Mat Min Exi Min Mat Fac Sto Fac Was Fac Ext Fac DSF Fac Upp Upp Res Res DSF Acc Robot Analysis Total 2 | . 1 . . . . . 1 . . . . . . . . . . . . . . . Derelict Logs Recovered 5 | . . 2 . . . . . . . . . . . . . . 3 . . . . . Drone Launches . | . . . . . . . . . . . . . . . . . . . . . . . Drone Recoveries . | . . . . . . . . . . . . . . . . . . . . . . . Exploration | -11 -10 -10 -9 -9 -9 -8 -8 -7 -7 -6 -6 -6 -6 -5 -5 -4 -4 -4 -3 -2 -2 -1 ------------- Run | Yrd Mat Min Mat Min Exi Min Mat Fac Sto Fac Was Fac Ext Fac DSF Fac Upp Upp Res Res DSF Acc Turns Passed 17402 | 54 1229 765 2069 394 1177 260 1534 1013 693 851 140 1326 1604 614 148 1796 114 70 762 348 21 420 Spaces Moved 18695 | 36 654 461 1031 190 789 371 1564 2174 757 508 179 2165 1873 1128 193 1825 292 182 1095 599 39 590 Core 117 | 14 . . . . . . . . . . 33 . . . . 15 . . . . . 55 Treads 3613 | 22 654 461 1031 190 685 . . . 50 508 12 . . . . . . . . . . . Legs . | . . . . . . . . . . . . . . . . . . . . . . . Wheels . | . . . . . . . . . . . . . . . . . . . . . . . Hover 1863 | . . . . . 104 371 284 . . . 46 767 . . 20 271 . . . . . . Flight 13102 | . . . . . . . 1280 2174 707 . 88 1398 1873 1128 173 1539 292 182 1095 599 39 535 Fastest Speed 27 | 50 160 160 160 160 52 52 34 31 29 160 40 34 27 30 30 28 37 37 31 31 40 37 Average Speed 63 | 117 160 160 160 160 145 52 40 31 39 160 71 45 57 30 33 37 37 37 35 34 40 39 Slowest Speed 250 | 160 240 160 240 160 160 52 116 31 240 160 160 160 95 34 60 250 37 37 117 40 40 50 Overloaded Moves . | . . . . . . . . . . . . . . . . . . . . . . . Propulsion Burnouts . | . . . . . . . . . . . . . . . . . . . . . . . Robots Hopped 120 | . . . . . . . 19 8 14 . . 13 8 3 . 26 1 . 15 11 . 2 Cave-ins Triggered 3 | . . . . . . . . . . . . . . . . 3 . . . . . . Exploration Rate (%) 53 | 3 91 97 73 32 94 81 79 50 79 11 76 44 81 24 93 33 56 33 29 11 51 18 Regions Visited 22 Branch Regions 8 Pre-discovered Areas 2 | . . 1 . . 1 . . . . . . . . . . . . . . . . . Known Exits Taken 9 | . . 1 1 1 1 1 . . . . . . . 1 . 1 . . 1 1 . . Unknown Exits Taken 9 | 1 1 . . . . . 1 1 1 . . 1 1 . . . 1 1 . . . . Scrap Searched 9 | . . 3 . . . 1 . . . . . . . . . . 2 3 . . . . Spaces Dug 105 | . . 7 32 . . 27 3 3 5 1 . 5 1 12 . 9 . . . . . . Terrain Destroyed 557 | . 17 16 155 . . 27 73 30 10 11 . 53 57 12 60 33 1 . 2 . . . Melee 36 | . . . . . . . 3 3 5 1 . 5 1 12 . 6 . . . . . . Projectile 38 | . . . . . . . . 1 5 2 . . . . . 27 1 . 2 . . . AOE 483 | . 17 16 155 . . 27 70 26 . 8 . 48 56 . 60 . . . . . . . Terrain Rammed . | . . . . . . . . . . . . . . . . . . . . . . . Walls Destroyed . | . . . . . . . . . . . . . . . . . . . . . . . Machines Disabled . | . . . . . . . . . . . . . . . . . . . . . . . Actions | -11 -10 -10 -9 -9 -9 -8 -8 -7 -7 -6 -6 -6 -6 -5 -5 -4 -4 -4 -3 -2 -2 -1 --------- Run | Yrd Mat Min Mat Min Exi Min Mat Fac Sto Fac Was Fac Ext Fac DSF Fac Upp Upp Res Res DSF Acc Total 23154 | 45 776 485 1335 246 816 435 2231 2462 1028 539 193 2467 2308 1365 259 2765 295 183 1431 726 43 721 Wait 3144 | . 33 13 113 17 . 63 422 250 189 12 2 249 284 201 36 739 . . 304 129 . 88 Move 18440 | 35 653 460 1030 189 788 370 1527 2157 729 508 178 2138 1857 1121 192 1772 289 181 1064 578 38 586 Hop 114 | . . . . . . . 17 8 13 . . 13 7 3 . 26 1 . 15 9 . 2 Pick Up 143 | 4 19 3 25 2 8 . 18 4 8 5 . 8 5 2 4 18 1 . 5 1 1 2 Fast Attach 117 | 5 1 . 7 . . . 14 5 6 1 2 9 9 3 6 27 2 2 8 4 2 4 Attach 87 | 1 5 . 2 2 2 . 12 3 5 3 2 11 6 3 3 14 1 . 4 3 . 5 Detach 25 | . . . . . . . 2 1 4 . 1 6 6 . 1 2 . . . 2 . . Swap 67 | . 2 1 12 1 7 . 15 2 7 3 . 2 7 . 2 6 . . . . . . Drop 131 | . 4 2 27 1 10 . 17 3 7 1 8 8 13 1 2 16 1 . 8 . 2 . Fire 279 | . 52 2 24 7 . 2 20 17 15 5 . 8 31 . 13 60 . . 23 . . . Melee 476 | . . . 95 27 . . 166 12 45 1 . 5 29 13 . 49 . . . . . 34 Ram 11 | . . . . . . . 1 . . . . 10 . . . . . . . . . . Kick . | . . . . . . . . . . . . . . . . . . . . . . . Crush 11 | . 7 4 . . . . . . . . . . . . . . . . . . . . Escape Stasis 108 | . . . . . . . . . . . . . 54 18 . 36 . . . . . . Rewire 1 | . . . . . 1 . . . . . . . . . . . . . . . . . Trap . | . . . . . . . . . . . . . . . . . . . . . . . Miscellaneous . | . . . . . . . . . . . . . . . . . . . . . . . Route ------- -11/Scrapyard -10/Materials (discovered 5 exits: *Mat x3 / *Min x2) -10/Mines (discovered 2 exits: *Mat x2) -9/Materials (discovered 3 exits: *Mat x2 / *Min) -9/Mines (discovered 2 exits: *Mat / *Exi) -9/Exiles (discovered 2 exits: *Min x2) -8/Mines (discovered 2 exits: *Mat x2) -8/Materials -7/Factory (discovered 4 exits: *Fac x2 / *Sto / [*Low]) -7/Storage -6/Factory -6/Waste -6/Factory (discovered 5 exits: *Fac x2 / [*Low x2] / *Ext) -6/Extension (discovered 2 exits: *Fac / [*Cet]) -5/Factory -5/DSF -4/Factory (discovered 3 exits: *Upp x2 / Arm) -4/Upper Caves -4/Upper Caves -3/Research (discovered 5 exits: *Res x3 / *Qua x2) -2/Research -2/DSF -1/Access History --------- Turn | Location | Event 8 | -11/Scrapyard | Discovered new exit (range 15) 55 | -11/Scrapyard | Entered Materials 304 | -10/Materials | Discovered new exit (range 14) 315 | -10/Materials | Build established: Mutant 470 | -10/Materials | Discovered new exit (range 3) 613 | -10/Materials | Discovered new exit (range 5) 784 | -10/Materials | Discovered new exit (range 5) 1009 | -10/Materials | Discovered new exit (range 4) 1284 | -10/Materials | Entered Mines 1294 | -10/Mines | Discovered new exit (range 5) 1318 | -10/Mines | YI-UF0 nonchalantly dropped a Grenade Launcher on the ground 1458 | -10/Mines | Learned location of Zion (-7) 1558 | -10/Mines | Met a Derelict who couldn't figure out how to use a Trap Extractor 1854 | -10/Mines | Found a hidden stash of uninstalled traps 1909 | -10/Mines | A weapon hastily lodged in a ceiling crevice suddenly fell to the ground 1934 | -10/Mines | Learned location of 1 exit from Materials 2005 | -10/Mines | Identified exit to Materials 2040 | -10/Mines | Discovered exit to Materials (range 7) 2049 | -10/Mines | Entered Materials 2049 | -9/Materials | Evolved 2 slots: Propulsion x1, Utility x1 2050 | -9/Materials | Identified exit to Materials 2283 | -9/Materials | Discovered new exit (range 5) 2351 | -9/Materials | Identified exit to Mines 3894 | -9/Materials | Discovered exit to Materials (range 16) 4049 | -9/Materials | First assault squad dispatched 4118 | -9/Materials | Entered Mines 4127 | -9/Mines | Core integrity fell below 50% 4208 | -9/Mines | Received a Rocket Launcher from a helpful Derelict 4259 | -9/Mines | Discovered exit to Materials (range 4) 4505 | -9/Mines | Deemed a non-threat by the Exiles lab entrance 4505 | -9/Mines | Discovered new exit (range 5) 4510 | -9/Mines | Identified exit to Exiles 4512 | -9/Mines | Entered Exiles 4535 | -9/Exiles | Discovered new exit (range 15) 4556 | -9/Exiles | Identified exit to Mines 4588 | -9/Exiles | Met 8R-AWN 4615 | -9/Exiles | Met EX-HEX 4697 | -9/Exiles | Met EX-DEC 4750 | -9/Exiles | Visited The Gauntlet 4974 | -9/Exiles | Met EX-BIN 5118 | -9/Exiles | Aligned with FarCom system 5120 | -9/Exiles | Given EX-Vault access code 5158 | -9/Exiles | Opened EX-Vault 5201 | -9/Exiles | Warned to stay clear of 0b10 Research branches 5320 | -9/Exiles | Discovered exit to Mines (range 14) 5481 | -9/Exiles | Found 0b10 Alert Chip 5689 | -9/Exiles | Left Exiles lab with 0b10 Alert Chip 5689 | -9/Exiles | Entered Mines 5854 | -8/Mines | Discovered exit to Materials (range 3) 5944 | -8/Mines | Discovered exit to Materials (range 11) 5949 | -8/Mines | Entered Materials 5949 | -8/Materials | Evolved 2 slots: Utility x2 6459 | -8/Materials | Lost 4 parts (1p2n1w) 6460 | -8/Materials | Destroyed 7 combat bots 6624 | -8/Materials | Repaired Lgt. Nuclear Core 6664 | -8/Materials | Repaired Imp. Light Armor Plating 6703 | -8/Materials | Repaired Imp. Light Armor Plating 6724 | -8/Materials | Build established: Hacker-Mutant 7218 | -8/Materials | Core integrity fell below 50% 7366 | -8/Materials | Lost 3 parts (1p2u) 7476 | -8/Materials | Discovered new exit (range 16) 7483 | -8/Materials | Entered Factory 7483 | -7/Factory | Evolved 2 slots: Propulsion x1, Utility x1 7935 | -7/Factory | Build established: Scavenger-Scout 8003 | -7/Factory | Discovered new exit (range 15) 8108 | -7/Factory | Lost 3 allies 8124 | -7/Factory | Destroyed 7 combat bots 8206 | -7/Factory | Cargo convoy interrupted 8213 | -7/Factory | Repaired Lgt. Armor Plating 8253 | -7/Factory | Repaired Imp. Propulsion Shielding 8305 | -7/Factory | Discovered new exit (range 13) 8353 | -7/Factory | Discovered new exit (range 15) 8488 | -7/Factory | Discovered new exit (range 5) 8496 | -7/Factory | Entered Storage 9088 | -7/Storage | Lost 4 parts (1p3n) 9114 | -7/Storage | Discovered new exit (range 16) 9189 | -7/Storage | Entered Factory 9189 | -6/Factory | Evolved 2 slots: Utility x2 9729 | -6/Factory | Build established: Hacker-Mutant 10040 | -6/Factory | Sucked down chute 10040 | -6/Factory | Entered Waste 10041 | -6/Waste | Met a frightened Derelict 10058 | -6/Waste | Spotted C-40 Crusher 10078 | -6/Waste | Spotted C-40 Crusher 10088 | -6/Waste | Spotted C-40 Crusher 10098 | -6/Waste | Spotted C-40 Crusher 10101 | -6/Waste | Crushed by Compactor (1 part destroyed, 1 dropped) 10108 | -6/Waste | Spotted C-40 Crusher 10136 | -6/Waste | Crushed by Compactor (1 part destroyed, 1 dropped) 10144 | -6/Waste | Crushed by Compactor (1 part destroyed, 2 dropped) 10173 | -6/Waste | Spotted C-40 Crusher 10176 | -6/Waste | Discovered new exit (range 12) 10180 | -6/Waste | Entered Factory 10455 | -6/Factory | Central database locked down 10595 | -6/Factory | Discovered new exit (range 6) 10701 | -6/Factory | Discovered new exit (range 15) 10780 | -6/Factory | Discovered new exit (range 8) 10814 | -6/Factory | Discovered new exit (range 6) 11290 | -6/Factory | Discovered new exit (range 5) 11491 | -6/Factory | Repaired Broken Nuclear Pulse Thruster 11506 | -6/Factory | Entered Extension 11519 | -6/Extension | Rescued a captive Derelict 11520 | -6/Extension | Rescued a captive Derelict 11569 | -6/Extension | Spotted B-75 Beast 11806 | -6/Extension | Disrupted transfer network 12112 | -6/Extension | Build established: Hacker-Scout 12199 | -6/Extension | System corruption reached 10% 12228 | -6/Extension | Rescued a captive Derelict 12240 | -6/Extension | Lost 3 parts (1n2u) 12278 | -6/Extension | Rescued a captive Derelict 12279 | -6/Extension | Rescued a captive Derelict 12418 | -6/Extension | Rescued a captive Derelict 12419 | -6/Extension | Rescued a captive Derelict 12522 | -6/Extension | Lost 5 allies 12614 | -6/Extension | Rescued A7 12940 | -6/Extension | Spotted B-75 Beast 13055 | -6/Extension | Discovered new exit (range 22) 13055 | -6/Extension | Discovered new exit (range 22) 13110 | -6/Extension | Entered Factory 13110 | -5/Factory | Accompanied by 1 ally (A7) 13110 | -5/Factory | Evolved 2 slots: Power x1, Utility x1 13118 | -5/Factory | Identified exit to DSF 13257 | -5/Factory | Spotted B-75 Beast 13724 | -5/Factory | Entered DSF 13786 | -5/DSF | Additional patrols routed to DSF 13842 | -5/DSF | Discovered new exit (range 16) 13862 | -5/DSF | Lost 4 parts (2p1n1w) 13872 | -5/DSF | Entered Factory 13872 | -4/Factory | Evolved 2 slots: Utility x2 14107 | -4/Factory | Build established: Wizard-Mutant 14385 | -4/Factory | Lost 8 parts (1p4n2u1w) 14530 | -4/Factory | Crushed by falling debris 14532 | -4/Factory | Crushed by falling debris 14532 | -4/Factory | System corruption reached 10% 14541 | -4/Factory | Crushed by falling debris 14578 | -4/Factory | Lost 9 parts (2n6u1w) 14718 | -4/Factory | Lost 3 parts (1p1n1u) 14764 | -4/Factory | Core integrity fell below 50% 14888 | -4/Factory | Spotted B-86 Titan 14956 | -4/Factory | System corruption reached 30% 15186 | -4/Factory | Identified exit to Upper Caves 15186 | -4/Factory | Identified exit to Armory 15289 | -4/Factory | Central database locked down 15289 | -4/Factory | Spotted B-86 Titan 15387 | -4/Factory | Build established: Hacker-Mutant 15565 | -4/Factory | Hacking Suite fried by hacking feedback 15619 | -4/Factory | Fabricated Hacking Suite (x1) 15651 | -4/Factory | Lost 4 parts (1p2u1w) 15668 | -4/Factory | Entered Upper Caves 15739 | -4/Upper Caves | Learned location of 1 exit from Research 15742 | -4/Upper Caves | Learned Research terminal intel 15752 | -4/Upper Caves | Learned Research security intel 15763 | -4/Upper Caves | Discovered new exit (range 10) 15782 | -4/Upper Caves | Entered another Upper Caves area 15842 | -4/Upper Caves | Discovered new exit (range 5) 15852 | -4/Upper Caves | Entered Research 15852 | -3/Research | Evolved 2 slots: Utility x2 15853 | -3/Research | Identified exit to Research 15855 | -3/Research | Loaded intel: 22 terminal locations 15939 | -3/Research | Discovered new exit (range 20) 16160 | -3/Research | Build established: Hacker-Scout 16304 | -3/Research | Lost 3 parts (1p2u) 16529 | -3/Research | Identified exit to Quarantine 16585 | -3/Research | Spotted B-86 Titan 16614 | -3/Research | Entered another Research area 16614 | -2/Research | Evolved 2 slots: Propulsion x1, Utility x1 16881 | -2/Research | Lost 5 parts (1p3n1u) 16962 | -2/Research | Identified exit to DSF 16962 | -2/Research | Entered DSF 16969 | -2/DSF | Discovered new exit (range 21) 16982 | -2/DSF | Additional patrols routed to DSF 16982 | -2/DSF | Identified exit to Access 16983 | -2/DSF | Entered Access 16983 | -1/Access | Evolved 2 slots: Utility x2 17153 | -1/Access | Build established: Hacker-Mutant 17305 | -1/Access | Core integrity fell below 50% 17340 | -1/Access | Lost 15 parts (1p2n12u) 17341 | -1/Access | Core integrity fell below 20% 17403 | -1/Access | Destroyed by S-43 Plague with Heavy Machine Gun Last Messages --------------- 17307_ P-80 Master resets S-43 Plague, system corruption cleaned. 17308_ Imp. Target Analyzer destroyed. 17309_ Adv. Weight Redist. System destroyed. 17325_ System corrupted: Matter fused (-5). 17331_ S-43 Plague suffers critical hit (Impale). 17331_ S-43 Plague destroyed. 17352_ S-43 Plague suffers critical hit (Impale). 17352_ S-43 Plague destroyed. 17372_ Quantum Reactor destroyed. 17373_ S-43 Plague destroyed. 17376_ Destroyed Sml. Battery. 17386_ Destroyed Gamma Rifle. 17386_ Railgun destroyed. 17391_ P-80 Master destroyed. 17395_ Acquired Hvy. Machine Gun. [Achievement: 5k Club] [Achievement: 10k Club] Map ----- +----------------------------------------------------+ | ???? ????????# #????# # | | ???? ????????########????# # | | ???? ????????????????????# # | | ???? ??????######???????## # # | | ????#######??????#= ?????? ## # # | | ?????????????????# ? ## # # | | ?????????????????# """"" ## # # | | ?????????????????# ! """"" ## # # | | ?????????????????# """"" ## # # | | ?????????????????# """"" ## # # | | ?????????????????# """"" ## ! ]]] # # | | ?????????????????# ## ]]] # # | | ?????????????????# ## ! ]]] # # | | ?????????????????? #? # # | | ???????????????????? ????? # # | | ?????????????????????? ????????? # # | | ??????##################+#############+### # | | ??????# # | | ??????# # | | ??????# # | | ??????# # | | ??????# # | | ??????# [= sp # | | ??????# ===ss # | | ??????# ##########s#############+########### | | ??????# #?# ![%%@* #????????????????? | | ??????# #?# ==[[* #????????????????? | | ??????# #?# [= #????????????????? | | ??????# #?# #????????????????? | | ??????# #?# #????????????????? | | ??????# #?# #????????????????? | | ??????########??# #????????????????? | | ????????????????# #????????????????? | | ????????????????# #????????????????? | | ????????????????# #????????????????? | | ????????????????#################????????????????? | | | | | | | | | | | | | | | | | | | | | | | | | | | | | +----------------------------------------------------+ Best States ------------- Heat Dissipation 57 Energy Generation 29 Energy Capacity 350 Matter Stores 300 Matter Capacity 300 Sight Range 22 Terrain Scan Range 20 Terrain Scan Density 10 Jamming Range 16 Corruption Block 20 Armor Coverage 450 Propulsion Shielding 66 Evasion (%) 76 Target Analysis 9 Recoil Reduction 3 Kinecelleration 30 Offensive Hacking 88 Defensive Hacking 22 Authchip Count 2 Item Schematics ----------------- Hacking Suite | -4/Factory | Hacked Robot Schematics ------------------ None Fabricated ------------ Hacking Suite | x1 | -4/Factory Alien Tech Used ----------------- None Achievements -------------- 10k Club 5k Club Backstab Cya! Dangerous Findings Denied? Dodgeball, But With Guns Hey, That's Mine! Hunted Just What I Needed Let's See Who's Tougher Oops Party Time Please Form A Line Prison Break Remodeling Respectable Loadout Significant Disruption Storm Trooper Total Silence Challenges ------------ None Game ------ Seed LargeStorageDatajack Manual? 0 Play Time 06:41:01 Cumulative 9.8 hours Start 2024.03.30 @ 21:25:18 End 2024.03.31 @ 23:37:50 Sessions 7 Manual Loads 0 Difficulty Rogue Special Mode None Game No. 7 Rogue 7 Adventurer 0 Explorer 0 Win Type - Total 0 Types 0/0/0/0/0/0/0/0/0 Lore% 16 Gallery% 12 Achievement% 19 Wizard Run 0 Options --------- Layout 1 ASCII 0 Keyboard 0 Movement Numpad Keybinds 0 Fullscreen 1 Font 24/Smallcaps Map View 50x35 Zoom Use 0% Tactical HUD 1 Map Filters NONE Filters NONE Steam 1 RUN: d8571a0f-d851-4f5b-803c-8436ca709ff8